[Event "NSV chessemy IM 2022"]
[Site "Braunschweig"]
[Date "2022.08.07"]
[Round "9.1"]
[White "Chennaoui, Yasin"]
[Black "Brynell, Stellan"]
[Result "0-1"]
[ECO "B25"]
[WhiteElo "2127"]
[BlackElo "2387"]
[Annotator "TA"]
[PlyCount "144"]
[EventDate "2022.07.30"]
[EventType "tourn"]
[EventCountry "GER"]
[SourceTitle "playchess.com"]
[Source "ChessBase"]
[SourceQuality "1"]
[TimeControl "40/5400+30:1800+30"]

{[%evp 21,143,-43,-32,-22,56,-27,-16,-31,0,0,14,0,34,0,0,14,17,-12,46,50,47,45,40,44,57,56,51,17,23,0,0,0,20,46,100,100,104,108,108,115,69,55,86,0,0,0,0,0,0,0,0,0,0,0,0,0,0,-645,-547,-670,-637,-483,-634,-635,-479,-618,-610,-606,-618,-602,-584,-574,-554,-678,-527,-916,-873,-955,-892,-1963,-814,-5389,-5410,-29982,-29983,-29983,-29980,-29985,0,-29983,0,-29985,-29986,-29985,-29986,-29986,0,-29984,-29985,-29987,-29988,-29988,-29985,-29985,-29986,-29985,-29982,-29982,-29983,-29983,-29984,-29984,-29985,-29985,-29986,-29986,-29987,-29993,-29994,-29996,-29997,-29998,-29999,-29999]} 1. e4 {[%emt 0:00:01]} c5 {[%emt 0:04:14]} 2. Nc3 {[%emt 0:01:26]} Nc6 {[%emt 0:01:01]} 3. g3 {[%emt 0:01:12]} g6 {[%emt 0:00:24]} 4. Bg2 {[%emt 0:00:06]} Bg7 {[%emt 0:00:04]} 5. d3 {[%emt 0:00:38]} e6 {[%emt 0:00:29]} 6. f4 {[%emt 0:00:50]} Nge7 {[%emt 0:00:19]} 7. Nf3 {[%emt 0:00:16]} O-O {[%emt 0:00:24]} 8. O-O {[%emt 0:00:23]} d6 {[%emt 0:01:50]} 9. Be3 {[%emt 0:00:46]} b6 {[%emt 0:05:47]} 10. d4 {[%emt 0:13:20]} Ba6 {[%emt 0:04:11]} 11. Rf2 {[%emt 0:01:04]} Qc7 {[%emt 0:27:19]} 12. Qd2 {[%emt 0:22:31] [#] B25: Closed Sicilian: 3 g3, lines without early Be3.} Rfd8 $146 {[%emt 0:03:21]} (12... Rad8 $11) ({Predecessor:} 12... Rac8 13. Ne2 Na5 14. b3 cxd4 15. Nexd4 e5 16. f5 exd4 17. Nxd4 Qc3 18. Rd1 Qxd2 19. Rdxd2 Be5 {0-1 (29) Kneutgen,A (2205)-Wittmann,W (2380) Oberwart 1998}) 13. Bf1 {[%emt 0:10:03]} (13. f5 $1 $14) 13... Bxf1 $11 {[%emt 0:05:35]} 14. Raxf1 {[%emt 0:00:01] The position is equal.} a6 {[%emt 0:01:16]} 15. Ne2 {[%emt 0:09:23]} Rac8 {[%emt 0:05:56]} 16. c3 {[%emt 0:03:24]} Qd7 {[%emt 0:02:20]} 17. Qd3 {[%emt 0:25:03]} f5 {[%emt 0:06:30]} 18. exf5 {[%emt 0:00:59]} Nxf5 {[%emt 0:00:22][%cal Oc5c4,Be7f5,Bf5h6,Bh6f7][%mdl 32]} 19. Bd2 {[%emt 0:01:41]} c4 {[%emt 0:09:01]} ({Better is} 19... d5 $11) 20. Qc2 $14 {[%emt 0:00:33]} ({Of course not} 20. Qxc4 Ncxd4 $1 21. Qd3 (21. Qxa6 Ra8 $15) 21... Nxf3+ 22. Qxf3 d5 $11) 20... Nce7 {[%emt 0:00:57]} 21. g4 {[%emt 0:00:26]} Nh6 {[%emt 0:00:07]} 22. h3 {[%emt 0:01:50]} Rf8 {[%emt 0:00:49]} 23. Ng3 {[%emt 0:01:11]} Rce8 {[%emt 0:02:45]} 24. Ng5 {[%emt 0:01:33]} Nf7 $1 {[%emt 0:01:34]} 25. Nxe6 {[%emt 0:02:04]} Qxe6 {[%emt 0:00:21]} 26. f5 {[%emt 0:00:01]} Qd5 {[%emt 0:05:54]} 27. f6 {[%emt 0:00:09]} Bxf6 {[%emt 0:01:11]} 28. Rxf6 $16 {[%emt 0:00:02]} Ng5 {[%emt 0:00:35]} 29. Bxg5 {[%emt 0:01:15]} (29. Rxf8+ {is interesting.} Rxf8 30. Rxf8+ Kxf8 31. Bxg5 Qxg5 32. Ne4) 29... Qxg5 {[%emt 0:00:06]} 30. Rxf8+ {[%emt 0:00:04]} ({Stronger than} 30. Rxd6 Nd5 31. Rxf8+ Rxf8 $17) 30... Rxf8 {[%emt 0:00:08]} 31. Rxf8+ {[%emt 0:00:04]} Kxf8 {[%emt 0:00:05][%cal Bg8f8,Bf8e8,Be8d7,Bd7c6][%mdl 4128] Endgame [#] KQN-KQN} 32. Qf2+ {[%emt 0:00:24]} (32. Ne4 $1 $16 {[%cal Re4g5]} Qe3+ 33. Qf2+ Qxf2+ 34. Kxf2) 32... Ke8 $1 $11 {[%emt 0:03:11]} 33. Ne4 {[%emt 0:00:13][%csl LRd6,LRg5]} Qc1+ {[%emt 0:00:24]} 34. Kh2 {[%emt 0:00:35]} Kd7 {[%emt 0:02:01]} 35. Nf6+ {[%emt 0:00:21]} Kc6 $1 {[%emt 0:01:20]} 36. Nxh7 {[%emt 0:02:58]} Nd5 {[%emt 0:00:10]} 37. Nf8 {[%emt 0:00:35]} g5 {[%emt 0:02:55]} 38. Ng6 {[%emt 0:01:25]} Qb1 {[%emt 0:00:34][%csl LRa2,LRg6]} 39. Qf7 {[%emt 0:00:36][%mdl 8192] Black keeps a firm grip on the game.} (39. Nf8 $11) 39... Qxb2+ $19 {[%emt 0:00:38]} 40. Kh1 {[%emt 0:00:18]} Qb1+ {[%emt 0:00:20]} 41. Kh2 {[%emt 0:30:01][%cal Og6e5]} Qc2+ {[%emt 0:04:40]} 42. Kg1 {[%emt 0:00:00]} Qd1+ {[%emt 0:02:48]} 43. Kf2 {[%emt 0:00:00][%cal Og6e5]} Qd2+ {[%emt 0:03:58]} 44. Kg1 {[%emt 0:00:00][%cal Og6e5]} Qe1+ {[%emt 0:01:52]} 45. Kh2 {[%emt 0:00:00][%cal Og6e5] [#]} Qe2+ {[%emt 0:00:40]} 46. Kg1 {[%emt 0:00:00][%cal Og6e5]} Nxc3 {[%emt 0:05:25]} 47. a4 {[%emt 0:00:00]} Qe3+ {[%emt 0:07:44]} 48. Kh2 {[%emt 0:00:00] Hoping for Ne7+.} Qxd4 {[%emt 0:03:35]} 49. Ne7+ {[%emt 0:00:00]} Kc5 {[%emt 0:00:09] ...Qd2+ is the strong threat.} 50. Nf5 {[%emt 0:00:00]} Qe5+ {[%emt 0:00:36]} (50... Qf2+ $142 51. Kh1 Ne4 52. Qc7+ Kb4) 51. Kg1 {[%emt 0:00:19]} Nd5 {[%emt 0:01:43] ( -> ...Qe1+)} 52. Qa7 {[%emt 0:01:32]} Qe1+ {[%emt 0:02:54]} 53. Kh2 {[%emt 0:00:05]} Qe2+ {[%emt 0:00:10]} 54. Kg1 {[%emt 0:01:10]} Qe1+ {[%emt 0:00:06]} 55. Kh2 {[%emt 0:00:08]} Qe2+ {[%emt 0:00:05]} 56. Kg1 {[%emt 0:00:42]} c3 {[%emt 0:00:11]} 57. Qb8 {[%emt 0:01:34]} Qe1+ {[%emt 0:00:54]} 58. Kh2 {[%emt 0:00:01]} Qe2+ {[%emt 0:00:48]} 59. Kg1 {[%emt 0:00:01]} Qe6 {[%emt 0:00:25] Black mates.} 60. Qh8 {[%emt 0:01:04]} Qe1+ {[%emt 0:00:23]} 61. Kh2 {[%emt 0:02:02]} Qe5+ {[%emt 0:00:12]} 62. Qxe5 {[%emt 0:00:09]} dxe5 {[%emt 0:00:04] KN-KN} 63. Ng3 {[%emt 0:00:35]} c2 {[%emt 0:00:52]} 64. Ne2 {[%emt 0:00:01]} Nf4 {[%emt 0:00:23]} 65. Nc1 {[%emt 0:00:04]} Kc4 {[%emt 0:00:34]} 66. h4 {[%emt 0:01:07]} gxh4 {[%emt 0:00:08]} 67. g5 {[%emt 0:00:02]} Kc3 {[%emt 0:00:25]} 68. a5 {[%emt 0:00:32]} bxa5 {[%emt 0:00:09]} 69. Ne2+ {[%emt 0:00:37]} Nxe2 {[%emt 0:00:11]} 70. g6 {[%emt 0:00:03]} c1=Q {[%emt 0:00:07]} 71. g7 {[%emt 0:00:03]} Qg1+ {[%emt 0:00:21]} 72. Kh3 {[%emt 0:00:02]} Qg3# {[%emt 0:00:05] Weighted Error Value: White=0.78/Black=0.22 (precise)} 0-1

[Event "NSV chessemy IM 2022"]
[Site "Braunschweig"]
[Date "2022.08.07"]
[Round "9.2"]
[White "Fischer, Daniel"]
[Black "Voege, Tobias"]
[Result "1/2-1/2"]
[ECO "C12"]
[WhiteElo "2351"]
[BlackElo "2272"]
[Annotator "RC"]
[PlyCount "120"]
[EventDate "2022.07.30"]
[EventType "tourn"]
[EventCountry "GER"]
[SourceTitle "playchess.com"]
[Source "ChessBase"]
[SourceQuality "1"]
[TimeControl "40/5400+30:1800+30"]

1. e4 {[%emt 0:00:03]} e6 {[%emt 0:00:04]} 2. d4 {[%emt 0:00:06]} d5 {[%emt 0:00:05]} 3. Nc3 {[%emt 0:00:05]} Nf6 {[%emt 0:00:03]} 4. Bg5 {[%emt 0:00:12]} h6 {[%emt 0:00:05]} 5. Bxf6 {[%emt 0:04:21]} Qxf6 {[%emt 0:00:06]} 6. exd5 {[%emt 0:01:30]} Bb4 {[%emt 0:00:04]} 7. Bb5+ {[%emt 0:06:19]} Bd7 {[%emt 0:00:44]} 8. Bxd7+ {[%emt 0:02:39]} Nxd7 {[%emt 0:00:08]} 9. dxe6 {[%emt 0:00:23]} Qxe6+ {[%emt 0:00:11]} 10. Nge2 {[%emt 0:03:31]} O-O {[%emt 0:08:43]} 11. O-O {[%emt 0:00:20]} Rfd8 {[%emt 0:07:25]} 12. Nf4 {[%emt 0:12:32]} Qf5 {[%emt 0:19:20]} 13. Nfd5 {[%emt 0:02:33]} Bd6 {[%emt 0:01:14]} 14. Ne3 {[%emt 0:03:07]} Qg6 {[%emt 0:05:20]} 15. Nb5 {[%emt 0:03:45]} Nb6 {[%emt 0:05:40]} 16. Nxd6 {[%emt 0:02:35]} Rxd6 {[%emt 0:01:20]} 17. Qf3 {[%emt 0:01:44]} Rxd4 {[%emt 0:10:08]} 18. Qxb7 {[%emt 0:01:48]} c5 {[%emt 0:00:56]} 19. Qc7 {[%emt 0:10:24]} Nd5 {[%emt 0:16:01]} 20. Nxd5 {[%emt 0:09:09]} Rxd5 {[%emt 0:00:12]} 21. c4 {[%emt 0:00:49]} Rd2 {[%emt 0:03:25]} 22. Qb7 {[%emt 0:05:41]} Re8 {[%emt 0:02:28]} 23. Qxa7 {[%emt 0:01:28]} Rxb2 {[%emt 0:00:14]} 24. Qxc5 {[%emt 0:01:09]} Qa6 {[%emt 0:00:34]} 25. a4 {[%emt 0:01:33]} Rc8 {[%emt 0:00:41]} 26. Qe5 {[%emt 0:02:33]} Rb4 {[%emt 0:03:10]} 27. Rfc1 {[%emt 0:06:47]} Rxa4 {[%emt 0:00:52]} 28. Rxa4 {[%emt 0:01:00]} Qxa4 {[%emt 0:00:05]} 29. Qf4 {[%emt 0:03:32]} Qb4 {[%emt 0:04:21]} 30. g3 {[%emt 0:01:15]} Qc5 {[%emt 0:04:19]} 31. Kg2 {[%emt 0:00:48]} Qc6+ {[%emt 0:00:30]} 32. Qf3 {[%emt 0:00:49]} Qd6 {[%emt 0:02:18]} 33. Qe4 {[%emt 0:02:17]} g6 {[%emt 0:01:49]} 34. Rc3 {[%emt 0:01:58]} Qb4 {[%emt 0:01:18]} 35. Rc2 {[%emt 0:01:33]} h5 {[%emt 0:01:33]} 36. h4 {[%emt 0:02:01]} Qa4 {[%emt 0:01:05]} 37. Rc1 {[%emt 0:01:38]} Rc5 {[%emt 0:01:32]} 38. Rc3 {[%emt 0:01:00]} Rc8 {[%emt 0:00:54]} 39. Qd5 {[%emt 0:00:18]} Qb4 {[%emt 0:00:19]} 40. Rc1 {[%emt 0:01:53]} Qb3 {[%emt 0:00:42]} 41. Qd4 {[%emt 0:32:56]} Qb4 {[%emt 0:01:40]} 42. Rc3 {[%emt 0:00:00]} Qa4 {[%emt 0:05:47]} 43. Kh2 {[%emt 0:00:00]} Qb4 {[%emt 0:02:47]} 44. Re3 {[%emt 0:00:00]} Kh7 {[%emt 0:01:41]} 45. Re4 {[%emt 0:00:00]} Qb7 {[%emt 0:03:50]} 46. Qe3 {[%emt 0:00:00]} Qc6 {[%emt 0:01:27]} 47. Qf4 {[%emt 0:00:00]} Kg8 {[%emt 0:01:09]} 48. Qe5 {[%emt 0:00:00]} Qb6 {[%emt 0:02:53]} 49. Rf4 {[%emt 0:00:00]} Qa7 {[%emt 0:02:16]} 50. Qd5 {[%emt 0:00:00]} Qe7 {[%emt 0:02:35]} 51. Re4 {[%emt 0:00:00]} Qc7 {[%emt 0:01:15]} 52. Kg2 {[%emt 0:00:00]} Rd8 {[%emt 0:01:28]} 53. Qb5 {[%emt 0:00:00]} Kh7 {[%emt 0:02:50]} 54. c5 {[%emt 0:00:00]} Rd5 {[%emt 0:02:17]} 55. Rc4 {[%emt 0:00:00]} Rf5 {[%emt 0:01:59]} 56. Rc2 {[%emt 0:00:00]} Qc8 {[%emt 0:01:31]} 57. Qb6 {[%emt 0:00:00]} Qe8 {[%emt 0:00:41]} 58. Qb7 {[%emt 0:00:19]} Qa4 {[%emt 0:01:26]} 59. Qb2 {[%emt 0:04:06]} Qc6+ {[%emt 0:00:00]} 60. Kh2 {[%emt 0:00:58]} Rxc5 {[%emt 0:00:00]} 1/2-1/2

[Event "NSV chessemy IM 2022"]
[Site "Braunschweig"]
[Date "2022.08.07"]
[Round "9.3"]
[White "Sumets, Andrey"]
[Black "von Mettenheim, Johannes"]
[Result "1-0"]
[ECO "A30"]
[WhiteElo "2542"]
[BlackElo "2253"]
[Annotator "TA"]
[PlyCount "81"]
[EventDate "2022.07.30"]
[EventType "tourn"]
[EventCountry "GER"]
[SourceTitle "playchess.com"]
[Source "ChessBase"]
[SourceQuality "1"]
[TimeControl "40/5400+30:1800+30"]

{[%evp 26,81,53,31,49,29,61,57,50,8,0,0,3,3,25,28,33,16,36,19,20,16,29,9,9,0,0,0,26,0,0,0,38,37,190,178,172,154,175,177,357,318,320,325,567,541,601,408,532,396,500,393,579,569,682,681,1069,1060]} 1. Nf3 {[%emt 0:00:03]} Nf6 {[%emt 0:00:03]} 2. c4 {[%emt 0:00:10]} e6 {[%emt 0:00:09]} 3. Nc3 {[%emt 0:00:42]} c5 {[%emt 0:01:50]} 4. g3 {[%emt 0:00:15]} b6 {[%emt 0:00:03]} 5. Bg2 {[%emt 0:00:23]} Bb7 {[%emt 0:00:09]} 6. O-O {[%emt 0:00:04]} a6 {[%emt 0:02:06]} 7. d4 {[%emt 0:04:41]} cxd4 {[%emt 0:00:06]} 8. Qxd4 {[%emt 0:00:05]} d6 {[%emt 0:05:03]} 9. Rd1 {[%emt 0:12:29]} Nbd7 {[%emt 0:00:28]} 10. Bg5 {[%emt 0:20:08]} Be7 {[%emt 0:03:15]} 11. Qd2 {[%emt 0:00:45]} O-O {[%emt 0:01:30]} 12. Bf4 {[%emt 0:00:07]} Ne8 {[%emt 0:00:41]} 13. Rac1 {[%emt 0:00:19]} Rc8 {[%emt 0:09:57]} 14. b3 {[%emt 0:00:11]} Ndf6 {[%emt 0:10:01] A30: Symmetrical English: Double Fianchetto and Hedgehog.} 15. h3 {[%emt 0:05:01] [#]} Rc7 $146 {[%emt 0:00:32]} ({Predecessor:} 15... d5 16. Ne5 Bb4 17. Qe3 Bc5 18. Qd3 Nc7 19. Na4 Ba3 20. Rc2 b5 21. Nb6 bxc4 22. bxc4 dxc4 23. Nexc4 Qxd3 24. Rxd3 Bxg2 25. Kxg2 Nb5 26. Nxc8 Rxc8 27. Nxa3 {1-0 (27) Valdes Romero,L (2402)-Nithyalakshmi,S (1945) Chess.com INT 2020}) 16. Be3 {[%emt 0:01:33] White is more active.} Nd7 {[%emt 0:00:17] White is slightly better.} 17. a4 {[%emt 0:03:10]} Nc5 {[%emt 0:05:20]} 18. Qa2 {[%emt 0:00:16]} Qc8 {[%emt 0:01:23]} 19. Bf4 {[%emt 0:03:13]} Nd7 {[%emt 0:09:54]} 20. e4 {[%emt 0:09:21]} Nef6 {[%emt 0:11:23]} 21. Qc2 {[%emt 0:14:05]} Qa8 {[%emt 0:09:05][%cal Rf6e4]} 22. Ne1 {[%emt 0:00:05][%cal Bf3e1,Be1d3,Bd3f2][%mdl 32]} Ne5 {[%emt 0:02:25]} 23. Be3 {[%emt 0:00:14]} Nfd7 {[%emt 0:01:59]} 24. f4 {[%emt 0:02:14]} Nc6 {[%emt 0:00:48]} 25. Nd3 {[%emt 0:00:40]} Nc5 {[%emt 0:09:54]} 26. Rb1 {[%emt 0:00:36]} Na5 {[%emt 0:07:13]} 27. Nf2 {[%emt 0:01:10]} Rfc8 {[%emt 0:02:02]} 28. Bf1 {[%emt 0:00:33]} Nd7 {[%emt 0:01:29]} 29. h4 {[%emt 0:06:35]} d5 $2 {[%emt 0:01:28] This costs Black the game.} (29... Qb8 $14) 30. exd5 $18 {[%emt 0:00:29]} exd5 {[%emt 0:00:52] [#]} 31. Qf5 $1 {[%emt 0:02:18]} ({Avoid the trap} 31. Nxd5 $2 Bxd5 32. Bh3 (32. Rxd5 $2 Qxd5 33. Qxh7+ Kxh7 $19) 32... Bc6 $19) 31... g6 {[%emt 0:00:37]} 32. Qh3 {[%emt 0:00:06][%cal Rc3d5]} Nxb3 $2 {[%emt 0:01:24]} (32... Nf6 {was worth a try.}) 33. Rxb3 {[%emt 0:00:26]} dxc4 {[%emt 0:00:08]} 34. Rbb1 {[%emt 0:00:34]} Nc5 {[%emt 0:02:07]} (34... Bf6 {was necessary.} 35. Rxd7 Bxc3 36. Rxc7 Rxc7 37. Bxb6 Rc8) 35. Rxb6 {[%emt 0:01:41] [#] Hoping for h5.} Bf3 {[%emt 0:01:14]} 36. Bg2 {[%emt 0:01:47]} Bf8 {[%emt 0:00:39]} 37. Qh1 {[%emt 0:02:22]} Qa7 {[%emt 0:00:13]} 38. Rdb1 {[%emt 0:00:28]} Bxg2 {[%emt 0:00:33]} (38... Re8 $142) 39. Qxg2 {[%emt 0:00:06] White is clearly winning.} Bg7 {[%emt 0:00:16]} 40. Nd5 {[%emt 0:00:43]} Rd7 {[%emt 0:00:35]} 41. Bxc5 {[%emt 0:33:16] Weighted Error Value: White=0.22 (precise) /Black=0.59} 1-0

[Event "NSV chessemy IM 2022"]
[Site "Braunschweig"]
[Date "2022.08.07"]
[Round "9.4"]
[White "Sriram, Jha"]
[Black "Colbow, Collin"]
[Result "1/2-1/2"]
[ECO "E46"]
[WhiteElo "2361"]
[BlackElo "2325"]
[Annotator "RC"]
[PlyCount "27"]
[EventDate "2022.07.30"]
[EventType "tourn"]
[EventCountry "GER"]
[SourceTitle "playchess.com"]
[Source "ChessBase"]
[SourceQuality "1"]
[TimeControl "40/5400+30:1800+30"]

1. d4 {[%emt 0:00:16]} Nf6 {[%emt 0:00:07]} 2. c4 {[%emt 0:00:09]} e6 {[%emt 0:00:04]} 3. Nc3 {[%emt 0:00:06]} Bb4 {[%emt 0:00:05]} 4. e3 {[%emt 0:00:03]} O-O {[%emt 0:00:09]} 5. Nge2 {[%emt 0:00:04]} Re8 {[%emt 0:00:37]} 6. a3 {[%emt 0:00:37]} Bf8 {[%emt 0:00:26]} 7. e4 {[%emt 0:01:45]} d5 {[%emt 0:00:05]} 8. e5 {[%emt 0:00:01]} Nfd7 {[%emt 0:00:26]} 9. h4 {[%emt 0:00:20]} c5 {[%emt 0:00:34]} 10. Bg5 {[%emt 0:00:10]} Qb6 {[%emt 0:00:20]} 11. cxd5 {[%emt 0:02:03]} cxd4 {[%emt 0:00:31]} 12. Nxd4 {[%emt 0:00:18]} exd5 {[%emt 0:00:12]} 13. Be2 {[%emt 0:00:15]} Nxe5 {[%emt 0:00:31]} 14. O-O {[%emt 0:01:42]} 1/2-1/2

[Event "NSV chessemy IM 2022"]
[Site "Braunschweig"]
[Date "2022.08.07"]
[Round "9.5"]
[White "Pubantz, Jan"]
[Black "Knuedel, Torben"]
[Result "1-0"]
[ECO "E05"]
[WhiteElo "2269"]
[BlackElo "2210"]
[Annotator "NA RC"]
[PlyCount "81"]
[EventDate "2022.07.30"]
[EventType "tourn"]
[EventCountry "GER"]
[SourceTitle "playchess.com"]
[Source "ChessBase"]
[SourceQuality "1"]
[TimeControl "40/5400+30:1800+30"]

1. d4 {[%emt 0:00:09]} Nf6 {[%emt 0:00:07]} 2. c4 {[%emt 0:00:03]} e6 {[%emt 0:00:04]} 3. g3 {[%emt 0:00:28]} d5 {[%emt 0:00:07]} 4. Bg2 {[%emt 0:00:05]} Be7 {[%emt 0:00:05]} 5. Nf3 {[%emt 0:00:05]} O-O {[%emt 0:00:06]} 6. O-O {[%emt 0:00:04]} dxc4 {[%emt 0:00:05]} 7. Qc2 {[%emt 0:00:06]} a6 {[%emt 0:00:05]} 8. a4 {[%emt 0:00:06]} Bd7 {[%emt 0:02:34]} 9. Rd1 {[%emt 0:01:43]} Bc6 {[%emt 0:01:22]} 10. Nc3 {[%emt 0:01:01]} a5 {[%emt 0:02:03]} 11. e4 {[%emt 0:01:10]} Na6 {[%emt 0:05:33]} 12. Ne5 {[%emt 0:00:03]} Nb4 {[%emt 0:03:51]} 13. Qe2 {[%emt 0:00:01]} Qc8 {[%emt 0:14:16]} 14. Be3 {[%emt 0:16:19]} Nd7 {[%emt 0:04:36]} 15. Nxc4 {[%emt 0:04:24]} b6 {[%emt 0:06:10]} 16. Rac1 {[%emt 0:02:44]} Bb7 {[%emt 0:00:43]} 17. Nb5 {[%emt 0:05:51]} Na2 {[%emt 0:05:18]} 18. Ra1 {[%emt 0:02:55]} Nb4 {[%emt 0:00:05]} 19. Bf4 {[%emt 0:05:10]} Ba6 {[%emt 0:06:51]} 20. Nxc7 {[%emt 0:17:49]} e5 {[%emt 0:00:28]} 21. Nxa6 {[%emt 0:02:47]} Qxa6 {[%emt 0:00:24]} 22. Bxe5 {[%emt 0:02:47]} Nxe5 {[%emt 0:00:12]} 23. dxe5 {[%emt 0:00:09]} Nc6 {[%emt 0:03:55]} 24. Bf1 {[%emt 0:06:57]} Bc5 {[%emt 0:02:12]} 25. Rd5 {[%emt 0:01:45]} f5 {[%emt 0:07:43]} 26. Nd6 {[%emt 0:09:18]} Qxe2 {[%emt 0:03:28]} 27. Bxe2 {[%emt 0:00:02]} f4 {[%emt 0:04:39]} 28. Bc4 {[%emt 0:00:43]} Kh8 {[%emt 0:03:48]} 29. e6 {[%emt 0:03:34]} fxg3 {[%emt 0:03:11]} 30. Nf7+ {[%emt 0:00:40]} Rxf7 {[%emt 0:00:07]} 31. exf7 {[%emt 0:00:01]} gxf2+ {[%emt 0:00:07]} 32. Kg2 {[%emt 0:00:54]} g6 {[%emt 0:00:23]} 33. Rxc5 {[%emt 0:01:17]} bxc5 {[%emt 0:00:54]} 34. Bd5 {[%emt 0:00:06]} Rf8 {[%emt 0:02:19]} 35. Bxc6 {[%emt 0:00:07]} Rxf7 {[%emt 0:00:03]} 36. Rf1 {[%emt 0:00:13]} Rc7 {[%emt 0:01:01]} 37. Bd5 {[%emt 0:00:03]} c4 {[%emt 0:00:07]} 38. Rxf2 {[%emt 0:00:04]} c3 {[%emt 0:00:05]} 39. bxc3 {[%emt 0:00:21]} Rxc3 {[%emt 0:00:01]} 40. e5 {[%emt 0:02:01]} Rd3 {[%emt 0:00:11]} 41. e6 {[%emt 0:30:37]} 1-0